Workbook

Sheet Sheet1
A1: 89 | O1: inc | P1: =6*D3/100 -> 1.649611448 | Q1: =D4-3*D3 -> 18.3594276 | R1: =NORMDIST(Q1,$D$4,$D$3,FALSE)*4000 -> 0.644784334
A2: 107 | Q2: =Q1+$P$1 -> 20.00903904 | R2: =NORMDIST(Q2,$D$4,$D$3,FALSE)*4000 -> 0.7705587453
A3: 69 | C3: Standard Deviation | D3: =STDEV(A:A) -> 27.49352413 | Q3: =Q2+$P$1 -> 21.65865049 | R3: 0.9175580934
A4: 126 | C4: Mean | D4: =AVERAGE(A:A) -> 100.84 | Q4: 23.30826194 | R4: 1.088674189
A5: 65 | C5: Median | D5: =MEDIAN(A:A) -> 99.5 | Q5: 24.95787339 | R5: 1.287060088
A6: 126 | C6: Mode | D6: =MODE(A:A) -> 89 | Q6: 26.60748484 | R6: 1.516129364
A7: 57 | Q7: 28.25709628 | R7: 1.779550165
A8: 104 | C8: Minimum | D8: =MIN(A:A) -> 28 | Q8: 29.90670773 | R8: 2.081233228
A9: 137 | C9: Maximum | D9: =MAX(A:A) -> 184 | Q9: 31.55631918 | R9: 2.425313067
A10: 68 | C10: Range | D10: =D9-D8 -> 156 | Q10: 33.20593063 | R10: 2.816121591
A11: 143 | Q11: 34.85554208 | R11: 3.258153474
A12: 141 | Q12: 36.50515352 | R12: 3.756022741
A13: 89 | C13: width | D13: =D10/9 -> 17.33333333 | Q13: 38.15476497 | R13: 4.314410143
A14: 106 | C14: bin width | D14: 20 | Q14: 39.80437642 | R14: 4.938001111
A15: 83 | Q15: 41.45398787 | R15: 5.631414286
A16: 68 | C16: Bin | D16: Frequency | E16: Corrected Bin | F16: Frequency | Q16: 43.10359932 | R16: 6.399120864
A17: 148 | C17: 0 | D17: =FREQUENCY(A1:A200,C17:C27) -> 0 | E17: =C17-10 -> -10 | F17: =D17 -> 0 | Q17: 44.75321077 | R17: 7.245355305
A18: 117 | C18: =C17+$D$14 -> 20 | D18: 0 | E18: =C18-10 -> 10 | F18: =D18 -> 0 | Q18: 46.40282221 | R18: 8.174018235
A19: 79 | C19: =C18+$D$14 -> 40 | D19: 1 | E19: 30 | F19: 1 | Q19: 48.05243366 | R19: 9.188572716
A20: 76 | C20: 60 | D20: 12 | E20: 50 | F20: 12 | Q20: 49.70204511 | R20: 10.29193538
A21: 90 | C21: 80 | D21: 32 | E21: 70 | F21: 32 | Q21: 51.35165656 | R21: 11.48636427
A22: 104 | C22: 100 | D22: 56 | E22: 90 | F22: 56 | Q22: 53.00126801 | R22: 12.77334549
A23: 109 | C23: 120 | D23: 51 | E23: 110 | F23: 51 | Q23: 54.65087945 | R23: 14.15348121
A24: 90 | C24: 140 | D24: 28 | E24: 130 | F24: 28 | Q24: 56.3004909 | R24: 15.62638163
A25: 48 | C25: 160 | D25: 19 | E25: 150 | F25: 19 | Q25: 57.95010235 | R25: 17.19056378
A26: 111 | C26: 180 | D26: 0 | E26: 170 | F26: 0 | Q26: 59.5997138 | R26: 18.84336035
A27: 75 | C27: 200 | D27: 1 | E27: 190 | F27: 1 | Q27: 61.24932525 | R27: 20.58084144
A28: 101 | Q28: 62.89893669 | R28: 22.39775243
A29: 116 | Q29: 64.54854814 | R29: 24.28747089
A30: 84 | Q30: 66.19815959 | R30: 26.24198518
A31: 76 | C31: -3sigma | D31: =D37-3*D3 -> 18.3594276 | E31: 0 | Q31: 67.84777104 | R31: 28.25189729
A32: 90 | D32: =D31 -> 18.3594276 | E32: =4000*NORMDIST(D32,$D$4,$D$3,FALSE) -> 0.644784334 | Q32: 69.49738249 | R32: 30.30645166
A33: 111 | C33: -2sigma | D33: =D37-2*D3 -> 45.85295173 | E33: 0 | Q33: 71.14699393 | R33: 32.39359169
A34: 100 | D34: =D33 -> 45.85295173 | E34: =4000*NORMDIST(D34,$D$4,$D$3,FALSE) -> 7.855081255 | Q34: 72.79660538 | R34: 34.50004457
A35: 83 | C35: -1sigma | D35: =D37-D3 -> 73.34647587 | E35: 0 | Q35: 74.44621683 | R35: 36.61143473
A36: 44 | D36: =D35 -> 73.34647587 | E36: =4000*NORMDIST(D36,$D$4,$D$3,FALSE) -> 35.20403181 | Q36: 76.09582828 | R36: 38.71242531
A37: 55 | C37: mean | D37: =D4 -> 100.84 | E37: 0 | Q37: 77.74543973 | R37: 40.78688632
A38: 141 | D38: =D37 -> 100.84 | E38: =4000*NORMDIST(D38,$D$4,$D$3,FALSE) -> 58.04163605 | Q38: 79.39505117 | R38: 42.81808739
A39: 76 | C39: 1sigma | D39: =D37+D3 -> 128.3335241 | E39: 0 | Q39: 81.04466262 | R39: 44.78891232
A40: 99 | D40: =D39 -> 128.3335241 | E40: =4000*NORMDIST(D40,$D$4,$D$3,FALSE) -> 35.20403181 | Q40: 82.69427407 | R40: 46.68209171
A41: 82 | C41: 2sigma | D41: =D37+2*D3 -> 155.8270483 | E41: 0 | Q41: 84.34388552 | R41: 48.48044962
A42: 73 | D42: =D41 -> 155.8270483 | E42: =4000*NORMDIST(D42,$D$4,$D$3,FALSE) -> 7.855081255 | Q42: 85.99349697 | R42: 50.16715933
A43: 137 | C43: 3sigma | D43: =D37+3*D3 -> 183.3205724 | E43: 0 | Q43: 87.64310842 | R43: 51.72600308
A44: 107 | D44: =D43 -> 183.3205724 | E44: =4000*NORMDIST(D44,$D$4,$D$3,FALSE) -> 0.644784334 | Q44: 89.29271986 | R44: 53.14163013
A45: 90 | Q45: 90.94233131 | R45: 54.39980754
A46: 114 | Q46: 92.59194276 | R46: 55.48765791
A47: 76 | Q47: 94.24155421 | R47: 56.39387853
A48: 117 | Q48: 95.89116566 | R48: 57.10893681
A49: 89 | Q49: 97.5407771 | R49: 57.62523711
A50: 61 | Q50: 99.19038855 | R50: 57.93725508
A51: 80 | Q51: 100.84 | R51: 58.04163605
A52: 122 | Q52: 102.4896114 | R52: 57.93725508
A53: 119 | Q53: 104.1392229 | R53: 57.62523711
A54: 54 | Q54: 105.7888343 | R54: 57.10893681
A55: 105 | Q55: 107.4384458 | R55: 56.39387853
A56: 158 | Q56: 109.0880572 | R56: 55.48765791
A57: 93 | Q57: 110.7376687 | R57: 54.39980754
A58: 82 | Q58: 112.3872801 | R58: 53.14163013
A59: 138 | Q59: 114.0368916 | R59: 51.72600308
A60: 117 | Q60: 115.686503 | R60: 50.16715933
A61: 93 | Q61: 117.3361145 | R61: 48.48044962
A62: 87 | Q62: 118.9857259 | R62: 46.68209171
A63: 71 | Q63: 120.6353374 | R63: 44.78891232
A64: 89 | Q64: 122.2849488 | R64: 42.81808739
A65: 143 | Q65: 123.9345603 | R65: 40.78688632
A66: 65 | Q66: 125.5841717 | R66: =NORMDIST(Q66,$D$4,$D$3,FALSE)*4000 -> 38.71242531
A67: 88 | Q67: =Q66+$P$1 -> 127.2337832 | R67: 36.61143473
A68: 84 | Q68: 128.8833946 | R68: 34.50004457
A69: 92 | Q69: 130.5330061 | R69: 32.39359169
A70: 102 | Q70: 132.1826175 | R70: 30.30645166
A71: 87 | Q71: 133.832229 | R71: 28.25189729
A72: 105 | Q72: 135.4818404 | R72: 26.24198518
A73: 142 | Q73: 137.1314519 | R73: 24.28747089
A74: 89 | Q74: 138.7810633 | R74: 22.39775243
A75: 116 | Q75: 140.4306748 | R75: 20.58084144
A76: 78 | Q76: 142.0802862 | R76: 18.84336035
A77: 88 | Q77: 143.7298977 | R77: 17.19056378
A78: 158 | Q78: 145.3795091 | R78: 15.62638163
A79: 75 | Q79: 147.0291205 | R79: 14.15348121
A80: 89 | Q80: 148.678732 | R80: 12.77334549
A81: 134 | Q81: 150.3283434 | R81: 11.48636427
A82: 116 | Q82: 151.9779549 | R82: 10.29193538
A83: 102 | Q83: 153.6275663 | R83: 9.188572716
A84: 95 | Q84: 155.2771778 | R84: 8.174018235
A85: 124 | Q85: 156.9267892 | R85: 7.245355305
A86: 155 | Q86: =Q85+$P$1 -> 158.5764007 | R86: 6.399120864
A87: 87 | Q87: =Q86+$P$1 -> 160.2260121 | R87: 5.631414286
A88: 126 | Q88: 161.8756236 | R88: 4.938001111
A89: 85 | Q89: 163.525235 | R89: 4.314410143
A90: 98 | Q90: 165.1748465 | R90: 3.756022741
A91: 116 | Q91: 166.8244579 | R91: 3.258153474
A92: 105 | Q92: 168.4740694 | R92: 2.816121591
A93: 103 | Q93: 170.1236808 | R93: 2.425313067
A94: 79 | Q94: 171.7732923 | R94: 2.081233228
A95: 83 | Q95: 173.4229037 | R95: 1.779550165
A96: 123 | Q96: =Q95+$P$1 -> 175.0725152 | R96: 1.516129364
A97: 111 | Q97: =Q96+$P$1 -> 176.7221266 | R97: 1.287060088
A98: 141 | Q98: 178.3717381 | R98: 1.088674189
A99: 119 | Q99: 180.0213495 | R99: 0.9175580934
A100: 94 | Q100: 181.670961 | R100: 0.7705587453
A101: 73 | Q101: 183.3205724 | R101: 0.644784334
A102: 91
A103: 77
A104: 96
A105: 110
A106: 113
A107: 72
A108: 109
A109: 66
A110: 112
A111: 103
A112: 142
A113: 124
A114: 157
A115: 127
A116: 94
A117: 130
A118: 62
A119: 72
A120: 157
A121: 109
A122: 121
A123: 98
A124: 91
A125: 78
A126: 127
A127: 92
A128: 28
A129: 124
A130: 91
A131: 104
A132: 152
A133: 91
A134: 96
A135: 104
A136: 108
A137: 107
A138: 140
A139: 74
A140: 111
A141: 85
A142: 123
A143: 89
A144: 89
A145: 106
A146: 96
A147: 105
A148: 184
A149: 61
A150: 58
A151: 111
A152: 59
A153: 118
A154: 91
A155: 89
A156: 120
A157: 138
A158: 70
A159: 103
A160: 124
A161: 81
A162: 122
A163: 95
A164: 126
A165: 141
A166: 157
A167: 64
A168: 129
A169: 112
A170: 103
A171: 91
A172: 82
A173: 142
A174: 92
A175: 52
A176: 103
A177: 49
A178: 132
A179: 86
A180: 92
A181: 101
A182: 137
A183: 45
A184: 64
A185: 50
A186: 132
A187: 70
A188: 93
A189: 86
A190: 118
A191: 153
A192: 153
A193: 140
A194: 88
A195: 108
A196: 114
A197: 111
A198: 74
A199: 55
A200: 121

Sheet Sheet2

Sheet Sheet3
